[Event "Titled Tuesday Blitz June 6 Late 2023"]
[White "Narayanan.S.L"]
[Black "Prohaszka, Peter"]
[WhiteFideId "5058422"]
[BlackFideId "726265"]
[WhiteElo "2563"]
[BlackElo "2626"]
[Result "0-1"]
[Round "9"]
[TimeControl "180+2"]
[Date "2023.06.07"]
[WhiteClock "0:00:05"]
[BlackClock "0:00:09"]
[Board "11"]

1. b3 {[%clk 0:03:00]}  d5 {[%clk 0:02:50]} 2. Bb2 {[%clk 0:03:01]}  Bf5 {[%clk 0:02:49]} 3. Nf3 {[%clk 0:02:57]}  e6 {[%clk 0:02:48]} 4. g3 {[%clk 0:02:57]}  h6 {[%clk 0:02:48]} 5. Bg2 {[%clk 0:02:58]}  Nf6 {[%clk 0:02:49]} 6. O-O {[%clk 0:02:58]}  Be7 {[%clk 0:02:44]} 7. d3 {[%clk 0:02:58]}  c5 {[%clk 0:02:44]} 8. Nbd2 {[%clk 0:02:59]}  Nc6 {[%clk 0:02:44]} 9. e4 {[%clk 0:02:52]}  dxe4 {[%clk 0:02:37]} 10. dxe4 {[%clk 0:02:52]}  Bh7 {[%clk 0:02:29]} 11. Qe2 {[%clk 0:02:47]}  O-O {[%clk 0:02:27]} 12. Rad1 {[%clk 0:02:48]}  Qc7 {[%clk 0:02:19]} 13. e5 {[%clk 0:02:42]}  Nd5 {[%clk 0:02:14]} 14. Ne4 {[%clk 0:02:42]}  Rfd8 {[%clk 0:01:57]} 15. a3 {[%clk 0:02:29]}  Nb6 {[%clk 0:01:39]} 16. c4 {[%clk 0:02:17]}  Nd7 {[%clk 0:01:06]} 17. Nd6 {[%clk 0:00:48]}  Ndxe5 {[%clk 0:01:06]} 18. Nxb7 {[%clk 0:00:38]}  Nxf3+ {[%clk 0:00:57]} 19. Qxf3 {[%clk 0:00:39]}  Qxb7 {[%clk 0:00:39]} 20. Qxc6 {[%clk 0:00:39]}  Qxc6 {[%clk 0:00:39]} 21. Bxc6 {[%clk 0:00:40]}  Rac8 {[%clk 0:00:36]} 22. Ba4 {[%clk 0:00:32]}  Rb8 {[%clk 0:00:30]} 23. Be5 {[%clk 0:00:32]}  Rbc8 {[%clk 0:00:04]} 24. f3 {[%clk 0:00:32]}  Bf6 {[%clk 0:00:03]} 25. Bxf6 {[%clk 0:00:27]}  gxf6 {[%clk 0:00:04]} 26. Kf2 {[%clk 0:00:26]}  Kf8 {[%clk 0:00:04]} 27. Ke3 {[%clk 0:00:24]}  Ke7 {[%clk 0:00:05]} 28. Rxd8 {[%clk 0:00:16]}  Rxd8 {[%clk 0:00:06]} 29. Rc1 {[%clk 0:00:16]}  Rb8 {[%clk 0:00:04]} 30. Bb5 {[%clk 0:00:15]}  Rb6 {[%clk 0:00:04]} 31. Rd1 {[%clk 0:00:12]}  Rb7 {[%clk 0:00:02]} 32. b4 {[%clk 0:00:09]}  cxb4 {[%clk 0:00:01]} 33. axb4 {[%clk 0:00:10]}  a6 {[%clk 0:00:01]} 34. Bc6 {[%clk 0:00:10]}  Rxb4 {[%clk 0:00:01]} 35. Rd7+ {[%clk 0:00:11]}  Kf8 {[%clk 0:00:02]} 36. Kd4 {[%clk 0:00:12]}  Rb1 {[%clk 0:00:01]} 37. Ra7 {[%clk 0:00:11]}  Rc1 {[%clk 0:00:01]} 38. c5 {[%clk 0:00:10]}  Bc2 {[%clk 0:00:01]} 39. Bd7 {[%clk 0:00:06]}  Bd1 {[%clk 0:00:01]} 40. c6 {[%clk 0:00:07]}  Ba4 {[%clk 0:00:01]} 41. Rxa6 {[%clk 0:00:07]}  Bb5 {[%clk 0:00:01]} 42. Rb6 {[%clk 0:00:08]}  Rc4+ {[%clk 0:00:01]} 43. Ke3 {[%clk 0:00:08]}  Rc5 {[%clk 0:00:01]} 44. f4 {[%clk 0:00:07]}  Ke7 {[%clk 0:00:02]} 45. Rb7 {[%clk 0:00:05]}  Kd6 {[%clk 0:00:02]} 46. Be8 {[%clk 0:00:02]}  Bxc6 {[%clk 0:00:03]} 47. Bxc6 {[%clk 0:00:03]}  Rxc6 {[%clk 0:00:03]} 48. Rxf7 {[%clk 0:00:03]}  Rc2 {[%clk 0:00:04]} 49. h4 {[%clk 0:00:02]}  f5 {[%clk 0:00:04]} 50. Rh7 {[%clk 0:00:02]}  Rc3+ {[%clk 0:00:04]} 51. Kf2 {[%clk 0:00:02]}  Rc2+ {[%clk 0:00:05]} 52. Kf3 {[%clk 0:00:02]}  Rc3+ {[%clk 0:00:05]} 53. Kg2 {[%clk 0:00:02]}  Kd5 {[%clk 0:00:01]} 54. Rxh6 {[%clk 0:00:03]}  Rc2+ {[%clk 0:00:01]} 55. Kh3 {[%clk 0:00:03]}  Rc1 {[%clk 0:00:01]} 56. Rg6 {[%clk 0:00:04]}  Kd6 {[%clk 0:00:01]} 57. Rg5 {[%clk 0:00:03]}  Ke7 {[%clk 0:00:02]} 58. Kg2 {[%clk 0:00:03]}  Kf6 {[%clk 0:00:02]} 59. h5 {[%clk 0:00:04]}  Kf7 {[%clk 0:00:02]} 60. Rg6 {[%clk 0:00:04]}  Rc2+ {[%clk 0:00:03]} 61. Kh3 {[%clk 0:00:04]}  Rc1 {[%clk 0:00:03]} 62. Kh4 {[%clk 0:00:05]}  Rg1 {[%clk 0:00:03]} 63. Rh6 {[%clk 0:00:04]}  Ke7 {[%clk 0:00:03]} 64. Rg6 {[%clk 0:00:02]}  Kf7 {[%clk 0:00:03]} 65. Rh6 {[%clk 0:00:02]}  Ke7 {[%clk 0:00:04]} 66. Rh8 {[%clk 0:00:03]}  Kf6 {[%clk 0:00:04]} 67. Rf8+ {[%clk 0:00:03]}  Kg7 {[%clk 0:00:04]} 68. Ra8 {[%clk 0:00:03]}  Kf6 {[%clk 0:00:04]} 69. Rf8+ {[%clk 0:00:03]}  Kg7 {[%clk 0:00:05]} 70. Rc8 {[%clk 0:00:03]}  Kf6 {[%clk 0:00:05]} 71. Kh3 {[%clk 0:00:02]}  Rh1+ {[%clk 0:00:05]} 72. Kg2 {[%clk 0:00:03]}  Rxh5 {[%clk 0:00:06]} 73. Rf8+ {[%clk 0:00:03]}  Kg7 {[%clk 0:00:07]} 74. Re8 {[%clk 0:00:03]}  Kf7 {[%clk 0:00:07]} 75. Ra8 {[%clk 0:00:03]}  Rh6 {[%clk 0:00:08]} 76. Ra7+ {[%clk 0:00:04]}  Kf6 {[%clk 0:00:08]} 77. Ra6 {[%clk 0:00:04]}  Rh7 {[%clk 0:00:09]} 78. Ra8 {[%clk 0:00:04]}  Rb7 {[%clk 0:00:09]} 79. Rf8+ {[%clk 0:00:05]}  Ke7 {[%clk 0:00:09]} 80. Rc8 {[%clk 0:00:06]}  Rb2+ {[%clk 0:00:10]} 81. Kh3 {[%clk 0:00:07]}  Rb1 {[%clk 0:00:10]} 82. Rg8 {[%clk 0:00:07]}  Kf7 {[%clk 0:00:10]} 83. Ra8 {[%clk 0:00:07]}  Kf6 {[%clk 0:00:11]} 84. Rf8+ {[%clk 0:00:06]}  Kg7 {[%clk 0:00:11]} 85. Rc8 {[%clk 0:00:07]}  Kf6 {[%clk 0:00:11]} 86. Rc7 {[%clk 0:00:07]}  Ra1 {[%clk 0:00:11]} 87. Rd7 {[%clk 0:00:07]}  Rb1 {[%clk 0:00:11]} 88. Ra7 {[%clk 0:00:07]}  Rc1 {[%clk 0:00:12]} 89. Rb7 {[%clk 0:00:07]}  Rd1 {[%clk 0:00:12]} 90. Rc7 {[%clk 0:00:07]}  Rd2 {[%clk 0:00:12]} 91. Rc1 {[%clk 0:00:07]}  Rb2 {[%clk 0:00:12]} 92. Re1 {[%clk 0:00:08]}  Ra2 {[%clk 0:00:12]} 93. Rg1 {[%clk 0:00:08]}  Ra3 {[%clk 0:00:12]} 94. Rf1 {[%clk 0:00:09]}  Ra2 {[%clk 0:00:11]} 95. Rh1 {[%clk 0:00:09]}  Ra8 {[%clk 0:00:11]} 96. Kg2 {[%clk 0:00:09]}  Ra2+ {[%clk 0:00:11]} 97. Kh3 {[%clk 0:00:09]}  Ke7 {[%clk 0:00:11]} 98. Rb1 {[%clk 0:00:09]}  Re2 {[%clk 0:00:10]} 99. Rb8 {[%clk 0:00:09]}  Kd6 {[%clk 0:00:11]} 100. Kh4 {[%clk 0:00:09]}  Re3 {[%clk 0:00:10]} 101. Rb1 {[%clk 0:00:07]}  Kd5 {[%clk 0:00:10]} 102. Rg1 {[%clk 0:00:07]}  Kd6 {[%clk 0:00:09]} 103. Kg5 {[%clk 0:00:07]}  Ke7 {[%clk 0:00:10]} 104. Kg6 {[%clk 0:00:07]}  Rd3 {[%clk 0:00:10]} 105. Rg2 {[%clk 0:00:08]}  Rc3 {[%clk 0:00:10]} 106. Kg7 {[%clk 0:00:07]}  Rb3 {[%clk 0:00:10]} 107. Kg6 {[%clk 0:00:08]}  Ra3 {[%clk 0:00:11]} 108. g4 {[%clk 0:00:08]}  fxg4 {[%clk 0:00:10]} 109. Re2 {[%clk 0:00:08]}  Ra8 {[%clk 0:00:06]} 110. f5 {[%clk 0:00:02]}  Rg8+ {[%clk 0:00:07]} 111. Kh7 {[%clk 0:00:02]}  Rg5 {[%clk 0:00:05]} 112. Rxe6+ {[%clk 0:00:01]}  Kf7 {[%clk 0:00:06]} 113. Rg6 {[%clk 0:00:02]}  Rh5+ {[%clk 0:00:05]} 114. Rh6 {[%clk 0:00:02]}  Rxh6+ {[%clk 0:00:06]} 115. Kxh6 {[%clk 0:00:03]}  g3 {[%clk 0:00:07]} 116. Kg5 {[%clk 0:00:03]}  g2 {[%clk 0:00:08]} 117. Kf4 {[%clk 0:00:04]}  g1=Q {[%clk 0:00:09]} 118. Ke5 {[%clk 0:00:05]}  Qg5 {[%clk 0:00:09]} 0-1


[Site "https://www.chess.com"]

[Event "Titled Tuesday Blitz June 6 Late 2023"]
[White "Gritsenko, Nikolai"]
[Black "Xiong, Jeffery"]
[WhiteFideId "14112493"]
[BlackFideId "2047640"]
[WhiteElo "2389"]
[BlackElo "2726"]
[Result "0-1"]
[Round "9"]
[TimeControl "180+2"]
[Date "2023.06.07"]
[WhiteClock "0:00:02"]
[BlackClock "0:01:08"]
[Board "15"]

1. b3 {[%clk 0:03:00]}  d5 {[%clk 0:02:58]} 2. Bb2 {[%clk 0:03:00]}  Nf6 {[%clk 0:02:51]} 3. Nf3 {[%clk 0:03:00]}  g6 {[%clk 0:02:51]} 4. c4 {[%clk 0:02:56]}  c6 {[%clk 0:02:51]} 5. cxd5 {[%clk 0:02:52]}  cxd5 {[%clk 0:02:51]} 6. e3 {[%clk 0:02:52]}  Bg7 {[%clk 0:02:51]} 7. Bb5+ {[%clk 0:02:51]}  Bd7 {[%clk 0:02:51]} 8. Bxd7+ {[%clk 0:02:46]}  Nbxd7 {[%clk 0:02:52]} 9. O-O {[%clk 0:02:45]}  O-O {[%clk 0:02:52]} 10. Nc3 {[%clk 0:02:44]}  Qb6 {[%clk 0:02:52]} 11. Rc1 {[%clk 0:02:39]}  Rfc8 {[%clk 0:02:50]} 12. Qe2 {[%clk 0:02:33]}  e6 {[%clk 0:02:49]} 13. Qb5 {[%clk 0:02:17]}  a6 {[%clk 0:02:44]} 14. Qxb6 {[%clk 0:02:16]}  Nxb6 {[%clk 0:02:45]} 15. Rc2 {[%clk 0:02:10]}  Rc7 {[%clk 0:02:42]} 16. Rfc1 {[%clk 0:02:08]}  Rac8 {[%clk 0:02:42]} 17. Ne1 {[%clk 0:01:50]}  Nbd7 {[%clk 0:02:28]} 18. Kf1 {[%clk 0:01:44]}  Kf8 {[%clk 0:02:17]} 19. Ke2 {[%clk 0:01:33]}  Ke8 {[%clk 0:02:16]} 20. Nb5 {[%clk 0:01:15]}  Rxc2 {[%clk 0:02:11]} 21. Nd6+ {[%clk 0:01:14]}  Kf8 {[%clk 0:02:07]} 22. Nxc2 {[%clk 0:00:53]}  Rc7 {[%clk 0:01:55]} 23. Ba3 {[%clk 0:00:36]}  Kg8 {[%clk 0:01:54]} 24. Nd4 {[%clk 0:00:34]}  Rxc1 {[%clk 0:01:54]} 25. Bxc1 {[%clk 0:00:34]}  b6 {[%clk 0:01:55]} 26. Nc8 {[%clk 0:00:24]}  Bf8 {[%clk 0:01:54]} 27. Na7 {[%clk 0:00:23]}  Ne8 {[%clk 0:01:52]} 28. f4 {[%clk 0:00:23]}  Nc7 {[%clk 0:01:51]} 29. Nac6 {[%clk 0:00:22]}  f6 {[%clk 0:01:51]} 30. Bb2 {[%clk 0:00:21]}  Kf7 {[%clk 0:01:51]} 31. Nd8+ {[%clk 0:00:20]}  Ke7 {[%clk 0:01:51]} 32. N8c6+ {[%clk 0:00:17]}  Ke8 {[%clk 0:01:49]} 33. a3 {[%clk 0:00:15]}  Bd6 {[%clk 0:01:47]} 34. g3 {[%clk 0:00:14]}  e5 {[%clk 0:01:42]} 35. fxe5 {[%clk 0:00:13]}  fxe5 {[%clk 0:01:43]} 36. Nf3 {[%clk 0:00:13]}  e4 {[%clk 0:01:43]} 37. Ng5 {[%clk 0:00:13]}  h6 {[%clk 0:01:42]} 38. Nh3 {[%clk 0:00:13]}  Nc5 {[%clk 0:01:35]} 39. Nd4 {[%clk 0:00:12]}  Nd3 {[%clk 0:01:34]} 40. Bc3 {[%clk 0:00:10]}  Bxa3 {[%clk 0:01:34]} 41. Nf4 {[%clk 0:00:10]}  Nxf4+ {[%clk 0:01:29]} 42. exf4 {[%clk 0:00:08]}  Bc5 {[%clk 0:01:22]} 43. b4 {[%clk 0:00:08]}  Bd6 {[%clk 0:01:12]} 44. f5 {[%clk 0:00:08]}  Kf7 {[%clk 0:01:10]} 45. fxg6+ {[%clk 0:00:05]}  Kxg6 {[%clk 0:01:11]} 46. d3 {[%clk 0:00:04]}  h5 {[%clk 0:01:10]} 47. dxe4 {[%clk 0:00:04]}  dxe4 {[%clk 0:01:10]} 48. Bd2 {[%clk 0:00:02]}  Nd5 {[%clk 0:01:11]} 49. Nc6 {[%clk 0:00:02]}  Kf5 {[%clk 0:01:09]} 50. b5 {[%clk 0:00:02]}  a5 {[%clk 0:01:08]} 0-1


[Site "https://www.chess.com"]

[Event "Titled Tuesday Blitz June 6 Late 2023"]
[White "Hansen, Eric"]
[Black "Ozer, Omer Faruk"]
[WhiteFideId "2606771"]
[BlackFideId "6354564"]
[WhiteElo "2561"]
[BlackElo "2260"]
[Result "0-1"]
[Round "9"]
[TimeControl "180+2"]
[Date "2023.06.07"]
[WhiteClock "0:01:08"]
[BlackClock "0:01:10"]
[Board "16"]

1. e4 {[%clk 0:02:59]}  c5 {[%clk 0:02:57]} 2. Nf3 {[%clk 0:02:58]}  Nc6 {[%clk 0:02:56]} 3. Bb5 {[%clk 0:02:58]}  e5 {[%clk 0:02:53]} 4. O-O {[%clk 0:02:58]}  Bd6 {[%clk 0:02:53]} 5. c3 {[%clk 0:02:57]}  Nge7 {[%clk 0:02:53]} 6. Re1 {[%clk 0:02:58]}  a6 {[%clk 0:02:46]} 7. Bf1 {[%clk 0:02:57]}  Qc7 {[%clk 0:02:44]} 8. a4 {[%clk 0:02:57]}  O-O {[%clk 0:02:39]} 9. Na3 {[%clk 0:02:57]}  Ng6 {[%clk 0:02:34]} 10. Nc4 {[%clk 0:02:58]}  Be7 {[%clk 0:02:34]} 11. a5 {[%clk 0:02:58]}  d6 {[%clk 0:02:34]} 12. h3 {[%clk 0:02:58]}  Be6 {[%clk 0:02:33]} 13. Qa4 {[%clk 0:02:59]}  f5 {[%clk 0:02:28]} 14. Nb6 {[%clk 0:02:58]}  fxe4 {[%clk 0:02:21]} 15. Nxa8 {[%clk 0:02:51]}  Rxa8 {[%clk 0:02:22]} 16. Bc4 {[%clk 0:02:50]}  d5 {[%clk 0:02:20]} 17. Be2 {[%clk 0:01:41]}  exf3 {[%clk 0:02:19]} 18. Bxf3 {[%clk 0:01:42]}  e4 {[%clk 0:02:19]} 19. Be2 {[%clk 0:01:43]}  Nf4 {[%clk 0:02:08]} 20. Bf1 {[%clk 0:01:44]}  c4 {[%clk 0:02:06]} 21. b3 {[%clk 0:01:42]}  Nd3 {[%clk 0:02:02]} 22. Re2 {[%clk 0:01:33]}  Nce5 {[%clk 0:01:55]} 23. bxc4 {[%clk 0:01:33]}  Nxc4 {[%clk 0:01:52]} 24. Rb1 {[%clk 0:01:32]}  Bc5 {[%clk 0:01:50]} 25. Re3 {[%clk 0:01:28]}  Nxe3 {[%clk 0:01:48]} 26. dxe3 {[%clk 0:01:24]}  Rf8 {[%clk 0:01:19]} 27. Ba3 {[%clk 0:01:18]}  Nxf2 {[%clk 0:01:14]} 28. Rxb7 {[%clk 0:01:08]}  Nxh3+ {[%clk 0:01:10]} 0-1


[Site "https://www.chess.com"]

[Event "Titled Tuesday Blitz June 6 Late 2023"]
[White "Svane, Frederik"]
[Black "Martic, Ivan"]
[WhiteFideId "12923044"]
[BlackFideId "929301"]
[WhiteElo "2502"]
[BlackElo "2346"]
[Result "1-0"]
[Round "9"]
[TimeControl "180+2"]
[Date "2023.06.07"]
[WhiteClock "0:01:43"]
[BlackClock "0:00:10"]
[Board "17"]

1. Nf3 {[%clk 0:03:00]}  Nf6 {[%clk 0:02:59]} 2. g3 {[%clk 0:03:01]}  g6 {[%clk 0:02:59]} 3. Bg2 {[%clk 0:03:02]}  Bg7 {[%clk 0:03:00]} 4. O-O {[%clk 0:03:02]}  O-O {[%clk 0:03:01]} 5. c4 {[%clk 0:03:03]}  d6 {[%clk 0:02:59]} 6. d4 {[%clk 0:03:02]}  Nbd7 {[%clk 0:02:55]} 7. Nc3 {[%clk 0:03:01]}  e5 {[%clk 0:02:55]} 8. e4 {[%clk 0:03:02]}  c6 {[%clk 0:02:55]} 9. Re1 {[%clk 0:03:01]}  a6 {[%clk 0:02:41]} 10. a4 {[%clk 0:02:52]}  exd4 {[%clk 0:02:39]} 11. Nxd4 {[%clk 0:02:52]}  a5 {[%clk 0:02:39]} 12. Bf4 {[%clk 0:02:47]}  Ne5 {[%clk 0:02:34]} 13. b3 {[%clk 0:02:47]}  Nfd7 {[%clk 0:02:23]} 14. Ra2 {[%clk 0:02:48]}  Qe7 {[%clk 0:01:57]} 15. Rd2 {[%clk 0:02:47]}  Nc5 {[%clk 0:01:53]} 16. h3 {[%clk 0:02:46]}  Ne6 {[%clk 0:01:27]} 17. Be3 {[%clk 0:02:46]}  Nc5 {[%clk 0:01:12]} 18. f4 {[%clk 0:02:45]}  Ned7 {[%clk 0:01:11]} 19. Bf2 {[%clk 0:02:45]}  h5 {[%clk 0:01:10]} 20. Qc2 {[%clk 0:02:37]}  h4 {[%clk 0:01:05]} 21. g4 {[%clk 0:02:35]}  Re8 {[%clk 0:01:05]} 22. Nf3 {[%clk 0:02:26]}  Qf6 {[%clk 0:01:01]} 23. e5 {[%clk 0:02:09]}  Qxf4 {[%clk 0:00:54]} 24. Be3 {[%clk 0:02:07]}  Qg3 {[%clk 0:00:53]} 25. Ne2 {[%clk 0:02:07]}  Qxe1+ {[%clk 0:00:40]} 26. Nxe1 {[%clk 0:02:08]}  Rxe5 {[%clk 0:00:37]} 27. Bf4 {[%clk 0:02:04]}  Re8 {[%clk 0:00:35]} 28. Bxd6 {[%clk 0:02:02]}  Ne6 {[%clk 0:00:28]} 29. Nf3 {[%clk 0:02:00]}  Ndc5 {[%clk 0:00:26]} 30. Nxh4 {[%clk 0:02:00]}  Na6 {[%clk 0:00:24]} 31. Nf3 {[%clk 0:01:58]}  Nb4 {[%clk 0:00:23]} 32. Qd1 {[%clk 0:01:58]}  b6 {[%clk 0:00:20]} 33. Nfd4 {[%clk 0:01:53]}  Nxd4 {[%clk 0:00:20]} 34. Nxd4 {[%clk 0:01:54]}  Re3 {[%clk 0:00:17]} 35. Nxc6 {[%clk 0:01:50]}  Nxc6 {[%clk 0:00:12]} 36. Bxc6 {[%clk 0:01:51]}  Ra7 {[%clk 0:00:13]} 37. Bf4 {[%clk 0:01:50]}  Rxh3 {[%clk 0:00:10]} 38. Rd8+ {[%clk 0:01:49]}  Kh7 {[%clk 0:00:11]} 39. Rxc8 {[%clk 0:01:50]}  Re7 {[%clk 0:00:10]} 40. Kg2 {[%clk 0:01:43]}  Rc3 {[%clk 0:00:10]} 41. Qh1+ {[%clk 0:01:43]} 1-0


[Site "https://www.chess.com"]

[Event "Titled Tuesday Blitz June 6 Late 2023"]
[White "Popilski, Gil"]
[Black "Matlakov, Maxim"]
[WhiteFideId "2809060"]
[BlackFideId "4168003"]
[WhiteElo "2537"]
[BlackElo "2666"]
[Result "0-1"]
[Round "9"]
[TimeControl "180+2"]
[Date "2023.06.07"]
[WhiteClock "0:00:19"]
[BlackClock "0:01:26"]
[Board "20"]

1. e4 {[%clk 0:03:00]}  c5 {[%clk 0:02:59]} 2. Nf3 {[%clk 0:02:51]}  e6 {[%clk 0:02:59]} 3. d4 {[%clk 0:02:48]}  cxd4 {[%clk 0:02:59]} 4. Nxd4 {[%clk 0:02:48]}  Nc6 {[%clk 0:03:00]} 5. Nc3 {[%clk 0:02:37]}  Qc7 {[%clk 0:02:59]} 6. Be3 {[%clk 0:02:35]}  a6 {[%clk 0:02:59]} 7. Bd3 {[%clk 0:02:34]}  Nf6 {[%clk 0:02:56]} 8. O-O {[%clk 0:02:33]}  b5 {[%clk 0:02:56]} 9. Nxc6 {[%clk 0:02:30]}  Qxc6 {[%clk 0:02:54]} 10. Qf3 {[%clk 0:02:19]}  Bb7 {[%clk 0:02:52]} 11. Rae1 {[%clk 0:02:16]}  b4 {[%clk 0:02:45]} 12. Nd5 {[%clk 0:00:39]}  Nxd5 {[%clk 0:02:26]} 13. exd5 {[%clk 0:00:40]}  Qxd5 {[%clk 0:02:26]} 14. Qg3 {[%clk 0:00:37]}  Bd6 {[%clk 0:02:23]} 15. Qxg7 {[%clk 0:00:35]}  O-O-O {[%clk 0:02:20]} 16. f3 {[%clk 0:00:33]}  Rhg8 {[%clk 0:02:17]} 17. Qd4 {[%clk 0:00:29]}  Bxh2+ {[%clk 0:01:27]} 18. Kxh2 {[%clk 0:00:23]}  Qh5+ {[%clk 0:01:27]} 19. Kg1 {[%clk 0:00:21]}  Rxg2+ {[%clk 0:01:27]} 20. Kxg2 {[%clk 0:00:21]}  Rg8+ {[%clk 0:01:27]} 21. Bg5 {[%clk 0:00:18]}  Rxg5+ {[%clk 0:01:27]} 22. Kf2 {[%clk 0:00:19]}  Qxf3# {[%clk 0:01:26]} 0-1


[Site "https://www.chess.com"]

[Event "Titled Tuesday Blitz June 6 Late 2023"]
[White "Rosen, Eric"]
[Black "reevecanada"]
[WhiteFideId "2032562"]
[WhiteElo "2331"]
[BlackElo "2611"]
[Result "1-0"]
[Round "9"]
[TimeControl "180+2"]
[Date "2023.06.07"]
[WhiteClock "0:00:16"]
[BlackClock "0:00:38"]
[Board "24"]

1. d4 {[%clk 0:03:00]}  d5 {[%clk 0:02:57]} 2. Bf4 {[%clk 0:03:01]}  Nf6 {[%clk 0:02:56]} 3. e3 {[%clk 0:03:01]}  e6 {[%clk 0:02:54]} 4. Nf3 {[%clk 0:03:02]}  Bd6 {[%clk 0:02:55]} 5. Ne5 {[%clk 0:03:02]}  c5 {[%clk 0:02:52]} 6. Bb5+ {[%clk 0:03:02]}  Kf8 {[%clk 0:02:43]} 7. dxc5 {[%clk 0:02:58]}  Qa5+ {[%clk 0:02:40]} 8. Nc3 {[%clk 0:02:55]}  Bxc5 {[%clk 0:02:39]} 9. O-O {[%clk 0:02:54]}  Bb4 {[%clk 0:02:38]} 10. Qd4 {[%clk 0:02:30]}  a6 {[%clk 0:02:31]} 11. a3 {[%clk 0:01:40]}  Be7 {[%clk 0:02:25]} 12. b4 {[%clk 0:01:30]}  Qd8 {[%clk 0:02:19]} 13. Be2 {[%clk 0:01:20]}  Nc6 {[%clk 0:02:14]} 14. Nxc6 {[%clk 0:01:19]}  bxc6 {[%clk 0:02:15]} 15. Na4 {[%clk 0:01:19]}  Nd7 {[%clk 0:02:14]} 16. e4 {[%clk 0:01:00]}  Bf6 {[%clk 0:02:00]} 17. e5 {[%clk 0:01:00]}  Be7 {[%clk 0:01:58]} 18. c4 {[%clk 0:00:57]}  h6 {[%clk 0:01:56]} 19. Rac1 {[%clk 0:00:55]}  Bb7 {[%clk 0:01:54]} 20. c5 {[%clk 0:00:47]}  g6 {[%clk 0:01:50]} 21. Bg3 {[%clk 0:00:43]}  Kg7 {[%clk 0:01:49]} 22. f4 {[%clk 0:00:42]}  h5 {[%clk 0:01:47]} 23. Bd3 {[%clk 0:00:36]}  Bh4 {[%clk 0:01:44]} 24. Nc3 {[%clk 0:00:28]}  Bxg3 {[%clk 0:01:42]} 25. hxg3 {[%clk 0:00:29]}  f5 {[%clk 0:01:41]} 26. exf6+ {[%clk 0:00:18]}  Qxf6 {[%clk 0:01:39]} 27. Ne2 {[%clk 0:00:18]}  Rae8 {[%clk 0:01:23]} 28. Qxf6+ {[%clk 0:00:17]}  Kxf6 {[%clk 0:01:21]} 29. Nd4 {[%clk 0:00:18]}  Re7 {[%clk 0:01:14]} 30. Rce1 {[%clk 0:00:18]}  Rhe8 {[%clk 0:01:13]} 31. Nf3 {[%clk 0:00:16]}  Kg7 {[%clk 0:01:03]} 32. Ne5 {[%clk 0:00:17]}  Nxe5 {[%clk 0:01:02]} 33. fxe5 {[%clk 0:00:17]}  Rf7 {[%clk 0:00:59]} 34. Rxf7+ {[%clk 0:00:17]}  Kxf7 {[%clk 0:01:00]} 35. Rf1+ {[%clk 0:00:18]}  Kg7 {[%clk 0:00:43]} 36. Rf6 {[%clk 0:00:19]}  Rh8 {[%clk 0:00:43]} 37. Rxe6 {[%clk 0:00:16]}  g5 {[%clk 0:00:38]} 38. Re7+ {[%clk 0:00:16]}  Kh6 {[%clk 0:00:38]} 39. Rxb7 {[%clk 0:00:16]} 1-0


[Site "https://www.chess.com"]

[Event "Titled Tuesday Blitz June 6 Late 2023"]
[White "Bitoon, Richard"]
[Black "Licznerski, Lukasz"]
[WhiteFideId "5201110"]
[BlackFideId "1179250"]
[WhiteElo "2374"]
[BlackElo "2453"]
[Result "1-0"]
[Round "9"]
[TimeControl "180+2"]
[Date "2023.06.07"]
[WhiteClock "0:01:31"]
[BlackClock "0:01:13"]
[Board "27"]

1. e4 {[%clk 0:02:54]}  c6 {[%clk 0:02:59]} 2. d4 {[%clk 0:02:53]}  d5 {[%clk 0:02:57]} 3. Nc3 {[%clk 0:02:54]}  dxe4 {[%clk 0:02:58]} 4. Nxe4 {[%clk 0:02:55]}  Bf5 {[%clk 0:02:56]} 5. Ng3 {[%clk 0:02:55]}  Bg6 {[%clk 0:02:55]} 6. Nh3 {[%clk 0:02:56]}  e6 {[%clk 0:02:53]} 7. Nf4 {[%clk 0:02:55]}  Bd6 {[%clk 0:02:52]} 8. c3 {[%clk 0:02:56]}  Qc7 {[%clk 0:02:51]} 9. Qf3 {[%clk 0:02:56]}  Nf6 {[%clk 0:02:34]} 10. h4 {[%clk 0:02:56]}  Nd5 {[%clk 0:02:35]} 11. Nxd5 {[%clk 0:02:51]}  cxd5 {[%clk 0:02:31]} 12. h5 {[%clk 0:02:46]}  Bc2 {[%clk 0:02:29]} 13. Bb5+ {[%clk 0:02:32]}  Nc6 {[%clk 0:02:29]} 14. Kd2 {[%clk 0:02:12]}  Bxg3 {[%clk 0:02:05]} 15. Kxc2 {[%clk 0:02:12]}  Bd6 {[%clk 0:02:06]} 16. h6 {[%clk 0:02:12]}  gxh6 {[%clk 0:01:52]} 17. Bxh6 {[%clk 0:01:58]}  O-O-O {[%clk 0:01:47]} 18. Bxc6 {[%clk 0:01:58]}  bxc6 {[%clk 0:01:44]} 19. Bg7 {[%clk 0:01:58]}  Rhg8 {[%clk 0:01:44]} 20. Bf6 {[%clk 0:01:55]}  Rde8 {[%clk 0:01:37]} 21. Rxh7 {[%clk 0:01:54]}  c5 {[%clk 0:01:31]} 22. dxc5 {[%clk 0:01:38]}  Bxc5 {[%clk 0:01:29]} 23. g3 {[%clk 0:01:35]}  e5 {[%clk 0:01:13]} 24. Qxd5 {[%clk 0:01:31]} 1-0


[Site "https://www.chess.com"]